[Event "44th Chess Olympiad Open 2022"]
[Site "Chennai"]
[Date "2022.07.29"]
[Round "1.46"]
[White "Ervan, Mohamad"]
[Black "Nissinen, Niilo Man"]
[Result "1/2-1/2"]
[WhiteElo "2402"]
[BlackElo "1693"]
[Annotator "TA"]
[PlyCount "109"]
[EventDate "2022.??.??"]
[TimeControl "60"]

{[%evp 12,109,28,-10,14,16,13,-26,-16,-59,-50,-70,-51,-174,-141,-146,-153,-302,
-300,-368,-348,-486,-448,-610,-633,-537,-459,-460,-471,-482,-478,-381,-297,
-534,-512,-687,-684,-673,-651,-711,-672,-817,-607,-610,-424,-400,-101,-102,-89,
-110,-105,-118,-106,-94,-22,-14,-14,-18,-14,-14,-19,-17,-19,-19,-18,-11,-18,
-38,-28,-28,-28,-30,-32,-28,-33,-75,-14,-32,-33,-29,-24,-23,0,0,0,0,0,0,0,0,0,
0,0,0,0,0,0,0,0,0]} 1. e4 {[%emt 0:00:07]} c5 {[%emt 0:00:07]} 2. Nf3 {[%emt 0:
00:00]} Nc6 {[%emt 0:00:07]} 3. d4 {[%emt 0:00:05]} cxd4 {[%emt 0:00:07]} 4.
Nxd4 {[%emt 0:00:04]} Nf6 {[%emt 0:00:21]} 5. Nc3 {[%emt 0:00:16]} e5 {[%emt 0:
00:00]} 6. Ndb5 {[%emt 0:00:23]} d6 {[%emt 0:00:08]} 7. Na3 {[%emt 0:01:32]}
Bg4 {[%emt 0:00:14] B33: Sicilian: Pelikan and Sveshnikov Variations.} 8. f3 {
[%emt 0:00:35]} Be6 {[%emt 0:00:05]} 9. Bg5 {[%emt 0:01:19]} Be7 $1 {[%emt 0:
00:00][%cal Yf8e7,Ye7f6,Yf6h4] Black has an edge.} 10. Nc4 {[%emt 0:00:00]} O-O
{[%emt 0:05:57]} 11. Bxf6 {[%emt 0:08:29]} Bxf6 {[%emt 0:00:08]} 12. Qxd6 {
[%emt 0:03:40]} ({White should play} 12. Ne3 $15) 12... Bh4+ $1 $19 {[%emt 0:
00:12]} 13. g3 {[%emt 0:03:19]} Qf6 {[%emt 0:00:10] [#] Black has strong
compensation.} 14. Qd1 $146 {[%emt 0:06:56]} (14. gxh4 $2 Qxh4+ 15. Kd1 Rad8
$19) (14. Qd2 $17 {was necessary.} Bg5 15. Qf2) ({Predecessor:} 14. O-O-O Rfd8
15. Qc5 Rxd1+ 16. Nxd1 Qxf3 17. Nf2 Nd4 18. gxh4 Qxf2 {0-1 (18) O'Donnell,
K-Horvath,D IECG email 2003}) 14... Qh6 $1 {[%emt 0:00:00][%cal Yh4g3] And now
...Bxg3+! would win.} 15. Kf2 {[%emt 0:11:15]} (15. Rg1 b5 16. gxh4 (16. Nxb5
$2 Rad8 $19) 16... Qxh4+ 17. Rg3 Qxh2 $19) 15... Rad8 $1 {[%emt 0:03:11]} (
15... Bxg3+ 16. Kxg3 f5 17. exf5 (17. Kf2 Rad8 $17) 17... Rxf5 18. Nd2 Qf4+ 19.
Kg2 Qg5+ 20. Kf2 Qh4+ 21. Ke3 $19) 16. Nd5 {[%emt 0:00:00]} f5 {[%emt 0:02:47]
[%cal Yf5e4]} 17. Kg2 {[%emt 0:08:11]} (17. gxh4 $2 fxe4 18. Rg1 Qxh4+ 19. Kg2
exf3+ 20. Kh1 Bxd5) 17... fxe4 {[%emt 0:02:13]} 18. fxe4 {[%emt 0:00:04]} Qg6 {
[%emt 0:04:01]} 19. Bd3 {[%emt 0:09:01]} Bg4 {[%emt 0:00:00]} ({Weaker is} 
19... Qf7 20. Rf1 Qg6 21. Rxf8+ (21. Kh1 Bg4 $11) 21... Rxf8 22. Qg1 $14) 20.
Qe1 {[%emt 0:00:41]} Bf3+ {[%emt 0:05:59]} 21. Kg1 {[%emt 0:00:00]} Rd7 {
[%emt 0:17:28]} 22. Nce3 $2 {[%emt 0:04:34]} (22. a4 {was called for.}) 22...
Nd4 {[%emt 0:04:27]} 23. c3 {[%emt 0:11:45]} Ne6 {[%emt 0:04:16][%cal Ye6g5]}
24. Nf5 {[%emt 0:02:52] [#]} Bd8 {[%emt 0:00:29] aiming for ... Rxd5.} 25. Qe3
{[%emt 0:04:22]} Ng5 {[%emt 0:03:06] Strongly threatening ... Rxd5.} 26. h4 {
[%emt 0:05:01] [#]} Bxe4 $1 {[%emt 0:00:33] A strong pair of Bishops.} 27. hxg5
{[%emt 0:04:19]} Bxd3 {[%emt 0:00:24]} 28. Qxd3 {[%emt 0:00:15] Hoping for Rf1.
} Qxf5 {[%emt 0:00:41]} (28... Rxf5 $19 29. Qc4 (29. Nf6+ $2 gxf6 30. Qc4+ Kh8
$19) 29... Qe6) 29. Qxf5 $17 {[%emt 0:00:31]} Rxf5 {[%emt 0:00:08]} 30. Rd1 {
[%emt 0:00:58][%cal Yd5f6] [#]} Rdf7 {[%emt 0:00:00] Inhibits Nf6+.} 31. g6 {
[%emt 0:00:44]} hxg6 {[%emt 0:00:09]} 32. Rh2 {[%emt 0:01:01]} Bg5 {[%emt 0:00:
33]} (32... Rf3 $17 33. Rg2 e4) 33. Re2 $11 {[%emt 0:00:11]} Rf3 {[%emt 0:02:
56]} 34. Kg2 {[%emt 0:00:12][%cal Yd5f4]} e4 {[%emt 0:00:17]} 35. Rd4 {[%emt 0:
01:22]} e3 {[%emt 0:01:07] ...Rf2+ is the strong threat.} 36. Nf4 {[%emt 0:00:
33]} Rf2+ {[%emt 0:03:36]} 37. Rxf2 {[%emt 0:00:10]} exf2 {[%emt 0:00:05]} 38.
Kxf2 {[%emt 0:00:57] Endgame KRB-KRN} Bf6 $1 {[%emt 0:00:23]} 39. Rd5 {[%emt 0:
00:47]} g5 {[%emt 0:00:00]} 40. Ne6 {[%emt 0:00:08]} Bxc3+ {[%emt 0:01:41]} 41.
Kg2 {[%emt 0:30:02]} Bf6 {[%emt 0:31:07] Prevents Rd8+.} 42. Nxg5 {[%emt 0:01:
10]} Rc7 {[%emt 0:00:00]} 43. Ne4 {[%emt 0:00:29]} Rc2+ {[%emt 0:01:27]} (43...
Bxb2 $17 44. Rb5 Bd4) 44. Kf3 {[%emt 0:00:06]} Bxb2 {[%emt 0:05:31]} 45. Rd7 {
[%emt 0:01:17]} Be5 {[%emt 0:01:47]} 46. Re7 {[%emt 0:00:36]} Bd4 {[%emt 0:01:
44]} 47. Ng5 {[%emt 0:00:11][%cal Re7e8] The position is equal.} Kf8 {[%emt 0:
00:00] Against Re8+} 48. Rxb7 {[%emt 0:00:00] Black must now prevent Ne6+.} Rc6
{[%emt 0:00:00] Inhibits Ne6+.} 49. Ke4 {[%emt 0:00:00]} Bb6 {[%emt 0:00:00]}
50. Ke5 {[%emt 0:00:00]} Rg6 {[%emt 0:00:00]} 51. Ne6+ {[%emt 0:00:00]} Kg8 {
[%emt 0:00:00]} 52. Rb8+ {[%emt 0:00:00]} Kf7 {[%emt 0:00:00]} 53. Rb7+ {
[%emt 0:00:00]} Kg8 {[%emt 0:00:00]} 54. Rb8+ {[%emt 0:00:00]} Kf7 {[%emt 0:00:
00]} 55. Rb7+ {[%emt 0:00:00] Whites escaped into a draw. Weighted Error Value:
White=0.35/ Black=0.24 (precise)} 1/2-1/2

[Event "44th Chess Olympiad Open 2022"]
[Site "Chennai"]
[Date "2022.07.29"]
[Round "1.46"]
[White "Deng, Yu Dong Michael"]
[Black "Taher, Yoseph Theolifus"]
[Result "0-1"]
[WhiteElo "2028"]
[BlackElo "2463"]
[Annotator "TA"]
[PlyCount "96"]
[EventDate "2022.??.??"]
[TimeControl "60"]

{[%evp 10,96,62,59,59,7,10,5,11,0,4,-6,0,-38,36,-13,-10,-46,0,0,0,-61,-58,-98,
-91,-85,-91,-94,-106,-116,-127,-145,-140,-252,-234,-251,-234,-240,-240,-231,
-228,-224,-224,-625,-618,-604,-601,-640,-631,-590,-574,-555,-538,-514,-483,
-361,-350,-342,-328,-676,-673,-673,-668,-613,-469,-617,-564,-838,-831,-1103,
-1103,-5193,-3885,-5730,-5643,-29978,-29979,-29979,-29980,-29979,-29980,-29981,
-29982,-29983,-29984,-29985,-29986,-29992,-29986]} 1. d4 {[%emt 0:00:05]} g6 {
[%emt 0:00:19]} 2. c4 {[%emt 0:00:22]} Bg7 {[%emt 0:00:09]} 3. Nc3 {[%emt 0:00:
00]} c5 {[%emt 0:00:30]} 4. d5 {[%emt 0:02:23]} Bxc3+ {[%emt 0:00:46]} 5. bxc3
{[%emt 0:00:01]} f5 {[%emt 0:00:06]} 6. h4 {[%emt 0:03:10]} Nf6 {[%emt 0:00:49]
A40: Unusual replies to 1 d4.} 7. Nf3 {[%emt 0:05:05]} (7. h5 $14) 7... Qa5 {
[%emt 0:00:25]} 8. Qc2 {[%emt 0:07:50][%cal Yd5d6]} d6 {[%emt 0:00:32] The
position is equal.} 9. Bg5 {[%emt 0:04:08]} Nbd7 {[%emt 0:01:21]} 10. e3 {
[%emt 0:03:09] [#]} h6 $146 {[%emt 0:02:41]} ({Predecessor:} 10... Ne4 11. Rc1
h6 12. Bf4 Ndf6 13. Ng1 Nd7 14. f3 Nef6 15. g4 Nf8 16. gxf5 Bxf5 {1-0 (46)
Buraczewski,R (2220)-Stachanczyk,J (2218) Szklarska Poreba 2017}) 11. Bf4 {
[%emt 0:03:47]} (11. Bxf6 $5 Nxf6 12. Rb1 $11) 11... Nb6 {[%emt 0:01:16]} (
11... b5 $15) 12. Bd3 {[%emt 0:02:40]} (12. a4 $14 {should be considered.})
12... Qa4 $11 {[%emt 0:00:49]} 13. Qb3 {[%emt 0:09:33]} e5 {[%emt 0:06:52]} (
13... Bd7 $1 $15) 14. dxe6 $1 {[%emt 0:00:46]} Bxe6 {[%emt 0:00:06]} 15. O-O-O
{[%emt 0:04:30]} ({Better is} 15. O-O $11) 15... O-O-O {[%emt 0:00:40]} 16. Nd2
{[%emt 0:14:24] Black keeps a firm grip on the game.} Ng4 {[%emt 0:02:08]} 17.
Rhf1 {[%emt 0:01:59]} Ne5 {[%emt 0:01:01]} 18. Be2 {[%emt 0:01:11]} Qa6 {
[%emt 0:00:12] Black is much more active.} 19. Bxe5 {[%emt 0:00:48]} dxe5 {
[%emt 0:03:05]} 20. Kb1 {[%emt 0:09:42]} Bd7 {[%emt 0:07:42][%cal Ye6d7,Yd7a4,
Ya4c2]} 21. Nf3 {[%emt 0:02:28]} (21. Ka1 $17) 21... Ba4 $19 {[%emt 0:00:00]}
22. Rxd8+ {[%emt 0:00:04]} Rxd8 {[%emt 0:00:03]} 23. Qa3 {[%emt 0:00:00] [#]}
Bc2+ $1 {[%emt 0:01:55]} 24. Kb2 {[%emt 0:00:00] [#] Strongly threatening Qxa6.
} Qxa3+ {[%emt 0:01:21]} ({And not} 24... Nxc4+ 25. Bxc4 Qxc4 26. Rc1 $17) 25.
Kxa3 {[%emt 0:00:04]} e4 {[%emt 0:00:02]} 26. Ne5 {[%emt 0:03:12]} (26. Nd4
cxd4 27. cxd4) 26... Rd2 {[%emt 0:00:10]} 27. Re1 {[%emt 0:00:41]} Na4 {
[%emt 0:00:19]} 28. Nxg6 {[%emt 0:01:05]} Nxc3 {[%emt 0:00:00]} 29. Nf4 {
[%emt 0:01:12]} Ba4 {[%emt 0:03:43][%csl Gc3][%cal Rd2a2]} 30. Ra1 {[%emt 0:00:
09]} a6 {[%emt 0:01:08] White must now prevent ...Bc2.} ({Stronger than} 30...
Nxe2 31. Nxe2 Rxe2 32. Kxa4 $17) 31. Nd5 {[%emt 0:01:37]} Nxd5 {[%emt 0:00:10]}
({Worse is} 31... Nxe2 32. Kxa4 b5+ 33. Kb3 $17) 32. cxd5 {[%emt 0:00:06]
Endgame KRB-KRB} Bd7 {[%emt 0:00:12]} 33. Re1 {[%emt 0:00:54]} Rxd5 {[%emt 0:
00:07] Threatens to win with ...Rd2.} 34. Rd1 $2 {[%emt 0:00:12]} (34. Rc1)
34... Rxd1 {[%emt 0:00:04]} 35. Bxd1 {[%emt 0:00:02] KB-KB} b5 {[%emt 0:00:41]}
36. Kb2 {[%emt 0:01:57]} Kc7 {[%emt 0:00:01]} 37. f3 {[%emt 0:00:35]} exf3 {
[%emt 0:00:05]} 38. gxf3 {[%emt 0:03:03]} Kd6 {[%emt 0:00:00]} 39. a3 {[%emt 0:
00:35]} c4 {[%emt 0:00:11] aiming for ...a5.} 40. Bc2 {[%emt 0:00:35]} Kc5 {
[%emt 0:00:24]} 41. f4 {[%emt 0:30:21]} a5 {[%emt 0:30:05][%cal Ya6a5,Ya5b4] ..
.b4 is the strong threat.} 42. e4 {[%emt 0:00:17]} fxe4 {[%emt 0:00:06] Black
mates.} 43. Bxe4 {[%emt 0:00:01]} Kd4 {[%emt 0:00:00]} 44. Bg6 {[%emt 0:00:13]}
b4 {[%emt 0:01:00]} 45. axb4 {[%emt 0:00:00]} axb4 {[%emt 0:00:05]} 46. h5 {
[%emt 0:00:46]} Ba4 {[%emt 0:01:00]} 47. Bh7 {[%emt 0:00:43]} c3+ {[%emt 0:00:
29]} 48. Ka2 {[%emt 0:00:19]} Bd1 {[%emt 0:00:00] Weighted Error Value:
White=0.92/Black=0.19 (very precise)} 0-1

[Event "44th Chess Olympiad Open 2022"]
[Site "Chennai"]
[Date "2022.07.29"]
[Round "1.46"]
[White "Kwong, Wing Ki"]
[Black "Kurniawan, Muhamad Agus"]
[Result "0-1"]
[WhiteElo "1824"]
[BlackElo "2328"]
[Annotator "TA"]
[PlyCount "122"]
[EventDate "2022.??.??"]
[TimeControl "60"]

{[%evp 16,122,0,0,14,2,-2,-100,-102,-96,-114,-115,-113,-109,-99,-174,-170,-193,
-186,-195,-216,-193,-197,-191,-221,-260,-161,-287,-288,-300,-272,-332,-125,
-116,-134,-134,-142,-128,-47,-116,-96,-125,-29,-37,-21,-229,-218,-164,-166,
-321,-318,-80,-69,-69,-69,-248,-241,-229,-222,-5375,-1164,-4827,-4458,-4168,
-1725,-29967,-29968,-29967,-29953,-12550,-11412,-29961,-29962,-29966,-29967,
-29966,-29968,-29968,-29967,-29974,-29975,-29976,-29973,-29973,-29968,-29967,
-29969,-29967,-29969,-29968,-29970,-29969,-29973,-29973,-29973,-29971,-29973,
-29972,-29973,-29977,-29978,-29978,-29979,-29979,-29980,-29980,-29981,-29983,
-29983]} 1. d4 {[%emt 0:02:12]} Nf6 {[%emt 0:00:01]} 2. c4 {[%emt 0:00:15]} g6
{[%emt 0:00:02]} 3. Nc3 {[%emt 0:00:19]} Bg7 {[%emt 0:00:02]} 4. e4 {[%emt 0:
00:00]} d6 {[%emt 0:00:02]} 5. Nf3 {[%emt 0:00:21]} O-O {[%emt 0:00:03]} 6. Be2
{[%emt 0:00:19]} Na6 {[%emt 0:00:03]} 7. Bg5 {[%emt 0:08:23]} h6 {[%emt 0:00:
00]} 8. Bh4 {[%emt 0:01:38]} g5 {[%emt 0:00:43]} 9. Bg3 {[%emt 0:00:21]} Nh5 {
[%emt 0:00:28][%cal Ye7e5] E91: King's Indian: Classical: 6 Be2, unusual
replies including 6...c5 and 6...Bg4.} 10. O-O {[%emt 0:01:08]} e6 {[%emt 0:00:
00] [#]} 11. c5 $146 {[%emt 0:12:47]} (11. Rb1 $11 {remains equal.}) ({
Predecessor:} 11. Ne1 Nxg3 12. hxg3 c5 13. d5 exd5 14. exd5 Nc7 15. Nc2 f5 16.
Bd3 Bd7 17. Qh5 Qe8 18. Qxe8 Raxe8 19. Rae1 a6 20. Rxe8 Rxe8 21. a4 b6 22. Ne3
Rf8 23. Ra1 a5 {½-½ (23) Khismatullin,D (2667)-Nikolaidis,I (2493) Chalkis
2010}) 11... Nxg3 {[%emt 0:09:29] Black is better.} 12. hxg3 {[%emt 0:00:15]}
dxc5 {[%emt 0:00:02]} 13. d5 {[%emt 0:01:15]} exd5 {[%emt 0:03:22]} 14. exd5 {
[%emt 0:02:05]} Nb4 {[%emt 0:00:08]} 15. a3 {[%emt 0:16:02]} (15. Re1 $17)
15... Bxc3 $19 {[%emt 0:01:16]} 16. axb4 {[%emt 0:00:20]} Bxb4 {[%emt 0:07:05]}
(16... Bxb2 17. Ra2 Bg7 18. bxc5 $17) 17. Ne5 {[%emt 0:00:52]} Qf6 {[%emt 0:00:
00]} 18. f4 {[%emt 0:02:03]} gxf4 $1 {[%emt 0:05:19]} 19. gxf4 {[%emt 0:01:28]}
c4 $1 {[%emt 0:00:03][%cal Yc5c4,Yc4c3,Yc3b2]} 20. g4 {[%emt 0:03:55]} c3 {
[%emt 0:02:09]} ({Stronger than} 20... Qh4 21. Kg2 $17) 21. Rf3 {[%emt 0:00:00]
} (21. bxc3 {keeps fighting.} Bxc3 22. Ra3 Bxe5 23. fxe5 Qxe5 24. Qd2) 21...
cxb2 {[%emt 0:01:34]} 22. Rb1 {[%emt 0:04:36]} Bd6 {[%emt 0:02:15]} 23. Qd4 {
[%emt 0:10:57]} Bxe5 $2 {[%emt 0:01:02]} (23... a5 $19 {is more deadly. And
now ...b6 would win.} 24. Rxb2 a4) 24. fxe5 $17 {[%emt 0:00:11]} Qb6 {[%emt 0:
00:02]} 25. Qxb6 {[%emt 0:00:48]} axb6 {[%emt 0:00:01]} 26. Rxb2 {[%emt 0:00:
07]} Ra4 {[%emt 0:01:13]} ({But not} 26... Bxg4 $6 27. Rg3 f5 28. exf6 $11) (
26... Re8 $17 27. Re3 Ra5) 27. Rc2 {[%emt 0:02:07]} (27. Rc3 $15) 27... Re4 {
[%emt 0:02:23]} ({Weaker is} 27... Bxg4 28. Rg3 h5 29. Bxg4 hxg4 30. Rxc7 $15)
28. e6 {[%emt 0:13:07] [#] Bd3 is the strong threat.} fxe6 {[%emt 0:00:00]} ({
Better is} 28... c5 $1 $17 29. dxc6 bxc6 30. Rxf7 Bxe6 31. Rxf8+ Kxf8) 29.
Rxf8+ $11 {[%emt 0:00:06]} Kxf8 {[%emt 0:00:02]} 30. Rxc7 $2 {[%emt 0:00:00]} (
30. Bf3 $1 $11 {and White is okay.} Rf4 31. Rxc7 Rxf3 32. Rxc8+ Ke7 33. Rb8)
30... Rxe2 $19 {[%emt 0:00:22]} 31. Rxc8+ $17 {[%emt 0:00:57] Endgame KR-KR}
Ke7 {[%emt 0:00:26]} 32. Rc7+ $2 {[%emt 0:00:22]} (32. Rh8) 32... Kd6 $19 {
[%emt 0:06:22]} 33. Rxb7 {[%emt 0:00:08]} ({White should play} 33. Rh7 $19)
33... Kxd5 {[%emt 0:00:04] Hoping for ...Rb2.} 34. Rxb6 {[%emt 0:00:00]} Re4 $1
{[%emt 0:00:11]} 35. Kf2 $2 {[%emt 0:00:50] Black continues to play with
concentration.} ({White has to play} 35. Rb5+ $1 $15 Kd6 36. Rh5) 35... Rxg4 {
[%emt 0:00:07]} 36. Rb5+ {[%emt 0:00:40] [#]} Ke4 $1 {[%emt 0:00:00] White
must now prevent ...e5.} 37. Rb4+ $2 {[%emt 0:00:50]} (37. Rh5 Rg6 38. Rh3)
37... Kf5 {[%emt 0:00:03]} 38. Rb5+ {[%emt 0:00:06]} e5 {[%emt 0:00:00]} 39.
Kf3 {[%emt 0:00:10]} Rf4+ {[%emt 0:00:33]} 40. Ke3 {[%emt 0:00:46]} h5 {
[%emt 0:02:24]} 41. Rb8 {[%emt 0:30:32]} Kg4 {[%emt 0:32:55]} 42. Rg8+ {
[%emt 0:00:45]} Kh4 {[%emt 0:00:23] ( -> ...Rg4)} 43. Re8 {[%emt 0:00:00]} Rf5
{[%emt 0:00:00] Black mates.} 44. Ke4 {[%emt 0:00:00]} Kg4 {[%emt 0:00:00]} 45.
Ra8 {[%emt 0:00:00]} h4 {[%emt 0:00:00]} 46. Ra1 {[%emt 0:00:00]} Rf3 {[%emt 0:
00:00]} 47. Rg1+ {[%emt 0:00:00]} Rg3 {[%emt 0:00:00]} 48. Rf1 {[%emt 0:00:00]}
Rg2 {[%emt 0:00:00]} 49. Rf8 {[%emt 0:02:21]} Re2+ {[%emt 0:00:00]} 50. Kd3 {
[%emt 0:00:18]} Ra2 {[%emt 0:00:00]} 51. Ke3 {[%emt 0:01:36]} Kg3 {[%emt 0:00:
00]} 52. Rg8+ {[%emt 0:00:36]} Kh2 {[%emt 0:00:00]} 53. Kf3 {[%emt 0:00:24]} h3
{[%emt 0:00:00]} 54. Rg7 {[%emt 0:00:45]} Ra3+ {[%emt 0:00:00]} 55. Ke4 {
[%emt 0:00:47]} Rg3 {[%emt 0:00:00]} 56. Ra7 {[%emt 0:00:17]} Rg5 {[%emt 0:00:
00]} 57. Ra3 {[%emt 0:00:43]} Kg2 {[%emt 0:00:00]} 58. Ra2+ {[%emt 0:00:14]}
Kg3 {[%emt 0:00:00]} 59. Ra3+ {[%emt 0:00:06]} Kg4 {[%emt 0:00:00]} 60. Ra2 {
[%emt 0:00:50]} Rh5 {[%emt 0:00:00]} 61. Kd5 {[%emt 0:00:49]} h2 {[%emt 0:00:
00] Weighted Error Value: White=1.05/Black=0.19 (very precise)} 0-1

[Event "44th Chess Olympiad Open 2022"]
[Site "Chennai"]
[Date "2022.07.29"]
[Round "1.47"]
[White "Cubas, Jose Fernando"]
[Black "Altell, Majed"]
[Result "1-0"]
[WhiteElo "2451"]
[BlackElo "1807"]
[Annotator "TA"]
[PlyCount "55"]
[EventDate "2022.??.??"]
[TimeControl "60"]

{[%evp 10,55,20,17,44,34,25,25,20,18,23,20,34,27,35,54,43,32,110,118,139,131,
224,223,225,213,227,175,166,195,337,140,738,636,1275,1267,1263,1255,6285,6287,
6126,6195,5506,5402,1555,1050,29998,29999]} 1. e4 {[%emt 0:00:03]} c6 {[%emt 0:
00:00]} 2. Nc3 {[%emt 0:02:04]} d5 {[%emt 0:00:12]} 3. Nf3 {[%emt 0:00:08]}
dxe4 {[%emt 0:00:39]} 4. Nxe4 {[%emt 0:00:04]} Nf6 {[%emt 0:00:10]} 5. Qe2 {
[%emt 0:01:31]} Nxe4 {[%emt 0:00:38]} 6. Qxe4 {[%emt 0:00:06]} Nd7 {[%emt 0:00:
00] B11: Caro-Kann: Two Knights Variation.} 7. Bc4 {[%emt 0:01:14] Hoping for
Ng5.} Nf6 {[%emt 0:00:57] [#]} 8. Ne5 $1 {[%emt 0:03:15][%csl Ge5][%cal Rc4f7]}
e6 {[%emt 0:00:33] White has an edge.} 9. Qe2 {[%emt 0:00:07]} Bd6 {[%emt 0:00:
00]} 10. d4 {[%emt 0:00:40]} Qc7 {[%emt 0:00:36]} 11. O-O {[%emt 0:10:00]} b6 {
[%emt 0:23:59]} 12. Re1 {[%emt 0:03:29] [#]} Bb7 $146 {[%emt 0:20:18]} ({
Predecessor:} 12... O-O 13. Bf4 Bb7 14. Rad1 Rad8 15. c3 Nd5 16. Bg3 f6 17. Nd3
Bc8 18. Bb3 Rfe8 {1-0 (33) Fiedorek,M (2176)-Topola,R (1827) Pokrzywna 2020})
13. Bg5 {[%emt 0:04:47]} Rf8 {[%emt 0:12:46]} (13... h6 $14 14. Bh4 O-O) 14. a4
$16 {[%emt 0:04:16]} O-O-O {[%emt 0:02:00]} 15. a5 {[%emt 0:01:30] White is
much more active.} bxa5 {[%emt 0:11:42]} (15... h6 $16) 16. Bd2 $18 {[%emt 0:
00:00]} Bb4 {[%emt 0:03:44]} 17. Bxb4 {[%emt 0:04:41]} axb4 {[%emt 0:00:17]}
18. Rxa7 {[%emt 0:00:18] Strongly threatening Ba6.} Kb8 {[%emt 0:02:51]} 19.
Rea1 {[%emt 0:00:49]} Qb6 {[%emt 0:04:48]} (19... Rxd4 $142 20. Ba6 Re4) 20.
R7a6 {[%emt 0:06:29]} Qc7 $2 {[%emt 0:05:53] Loses the game.} (20... Bxa6 $2
21. Rxa6 Kc7 22. Rxb6 $18) (20... Qxd4 $16 21. Nxc6+ Bxc6) 21. Qe1 {[%emt 0:01:
27]} Rxd4 {[%emt 0:02:33] [#]} 22. Nxc6+ {[%emt 0:04:04]} Bxc6 {[%emt 0:00:32]}
23. Qxb4+ {[%emt 0:00:14]} Kc8 {[%emt 0:00:56]} 24. Qxf8+ {[%emt 0:00:29]} Rd8
{[%emt 0:00:35] [#]} 25. Ra8+ $1 {[%emt 0:00:21]} Bxa8 {[%emt 0:00:16]} 26.
Rxa8+ {[%emt 0:00:06]} Kb7 {[%emt 0:00:47]} 27. Qxd8 {[%emt 0:00:24]} Qf4 {
[%emt 0:00:17]} 28. Qc8+ {[%emt 0:00:31] Weighted Error Value: White=0.26 
(precise) /Black=0.60} 1-0

[Event "44th Chess Olympiad Open 2022"]
[Site "Chennai"]
[Date "2022.07.29"]
[Round "1.47"]
[White "Jodorcovsky Werjivker, Paulo"]
[Black "seder mohamad"]
[Result "1-0"]
[WhiteElo "2213"]
[BlackElo "1950"]
[Annotator "RC"]
[PlyCount "153"]
[EventDate "2022.??.??"]
[TimeControl "60"]

1. d4 {[%emt 0:00:08]} e6 {[%emt 0:01:26]} 2. c4 {[%emt 0:00:24]} Nf6 {[%emt 0:
00:00]} 3. Nc3 {[%emt 0:00:10]} Bb4 {[%emt 0:00:50]} 4. Bd2 {[%emt 0:00:07]}
O-O {[%emt 0:05:04]} 5. Nf3 {[%emt 0:00:25]} d5 {[%emt 0:11:07]} 6. e3 {
[%emt 0:00:23]} c5 {[%emt 0:01:01]} 7. a3 {[%emt 0:03:18]} Bxc3 {[%emt 0:06:38]
} 8. Bxc3 {[%emt 0:00:05]} cxd4 {[%emt 0:01:05]} 9. Qxd4 {[%emt 0:06:53]} Nc6 {
[%emt 0:04:37]} 10. Qd1 {[%emt 0:05:06]} b6 {[%emt 0:06:48]} 11. Rc1 {[%emt 0:
00:00]} Bb7 {[%emt 0:04:27]} 12. Be2 {[%emt 0:12:28]} Qe7 {[%emt 0:08:21]} 13.
O-O {[%emt 0:09:44]} Rfd8 {[%emt 0:04:47]} 14. Qa4 {[%emt 0:01:48]} Rac8 {
[%emt 0:07:25]} 15. Rfd1 {[%emt 0:08:22]} e5 {[%emt 0:04:15]} 16. cxd5 {
[%emt 0:05:51]} Nxd5 {[%emt 0:01:02]} 17. Be1 {[%emt 0:01:03]} e4 {[%emt 0:00:
00]} 18. Nd2 {[%emt 0:02:19]} Nf6 {[%emt 0:01:57]} 19. Nf1 {[%emt 0:02:08]}
Rxd1 {[%emt 0:04:09]} 20. Rxd1 {[%emt 0:00:18]} a6 {[%emt 0:00:27]} 21. Ng3 {
[%emt 0:00:38]} b5 {[%emt 0:00:27]} 22. Qb3 {[%emt 0:00:10]} Rd8 {[%emt 0:00:
00]} 23. Bc3 {[%emt 0:02:02]} Bc8 {[%emt 0:01:53]} 24. Rxd8+ {[%emt 0:02:13]}
Nxd8 {[%emt 0:00:53]} 25. Bxf6 {[%emt 0:02:18]} gxf6 {[%emt 0:01:47]} 26. Qc3 {
[%emt 0:01:28]} Bb7 {[%emt 0:04:10]} 27. Nh5 {[%emt 0:00:15]} Qd6 {[%emt 0:00:
00]} 28. Nxf6+ {[%emt 0:00:35]} Kf8 {[%emt 0:00:05]} 29. Nxh7+ {[%emt 0:01:19]}
Ke7 {[%emt 0:00:53]} 30. Ng5 {[%emt 0:02:03]} a5 {[%emt 0:01:49]} 31. Qxa5 {
[%emt 0:02:28]} f6 {[%emt 0:01:26]} 32. Nh3 {[%emt 0:00:48]} Bc6 {[%emt 0:00:
00]} 33. Nf4 {[%emt 0:00:32]} Nb7 {[%emt 0:00:14]} 34. Qc3 {[%emt 0:03:20]} Nc5
{[%emt 0:00:24]} 35. Qd4 {[%emt 0:02:20]} Qxd4 {[%emt 0:01:08]} 36. exd4 {
[%emt 0:00:06]} Na4 {[%emt 0:00:12]} 37. b3 {[%emt 0:07:05]} Nc3 {[%emt 0:00:
00]} 38. Kf1 {[%emt 0:01:14]} Nb1 {[%emt 0:00:51]} 39. Ke1 {[%emt 0:00:13]}
Nxa3 {[%emt 0:00:15]} 40. Kd2 {[%emt 0:01:05]} b4 {[%emt 0:00:21]} 41. Kc1 {
[%emt 0:30:40]} Bb5 {[%emt 0:30:56]} 42. Bg4 {[%emt 0:03:35]} Bc6 {[%emt 0:00:
00]} 43. Be2 {[%emt 0:00:00]} f5 {[%emt 0:00:00]} 44. h4 {[%emt 0:00:00]} Bb5 {
[%emt 0:00:00]} 45. Bxb5 {[%emt 0:00:00]} Nxb5 {[%emt 0:00:00]} 46. Ne2 {
[%emt 0:00:00]} f4 {[%emt 0:00:00]} 47. Nxf4 {[%emt 0:00:00]} Nxd4 {[%emt 0:00:
00]} 48. Nd5+ {[%emt 0:00:00]} Ke6 {[%emt 0:00:00]} 49. Nxb4 {[%emt 0:00:00]}
Nxb3+ {[%emt 0:00:00]} 50. Kd1 {[%emt 0:00:00]} Nd4 {[%emt 0:00:00]} 51. Nc2 {
[%emt 0:00:00]} Nf5 {[%emt 0:00:00]} 52. g3 {[%emt 0:00:00]} Nh6 {[%emt 0:00:
00]} 53. Ne3 {[%emt 0:00:00]} Ke5 {[%emt 0:00:00]} 54. Kd2 {[%emt 0:00:00]} Ng8
{[%emt 0:00:22]} 55. Kc3 {[%emt 0:00:00]} Nf6 {[%emt 0:00:46]} 56. Kc4 {
[%emt 0:00:00]} Ng8 {[%emt 0:01:37]} 57. Kc5 {[%emt 0:00:00]} Nf6 {[%emt 0:00:
00]} 58. Nc4+ {[%emt 0:00:00]} Ke6 {[%emt 0:00:35]} 59. Ne3 {[%emt 0:00:00]}
Ke5 {[%emt 0:00:06]} 60. Kc4 {[%emt 0:00:00]} Ng8 {[%emt 0:00:59]} 61. h5 {
[%emt 0:00:00]} Nh6 {[%emt 0:02:48]} 62. g4 {[%emt 0:00:00]} Nf7 {[%emt 0:00:
00]} 63. Kc5 {[%emt 0:00:00]} Kf4 {[%emt 0:01:00]} 64. Kd5 {[%emt 0:00:00]} Nh6
{[%emt 0:01:11]} 65. Ke6 {[%emt 0:00:00]} Kg5 {[%emt 0:00:34]} 66. Ke5 {
[%emt 0:00:00]} Nf7+ {[%emt 0:00:30]} 67. Kxe4 {[%emt 0:00:00]} Nd6+ {[%emt 0:
00:00]} 68. Kf3 {[%emt 0:00:00]} Nb5 {[%emt 0:00:18]} 69. Kg3 {[%emt 0:00:00]}
Nc3 {[%emt 0:00:05]} 70. f4+ {[%emt 0:00:00]} Kh6 {[%emt 0:00:05]} 71. Nf5+ {
[%emt 0:00:00]} Kh7 {[%emt 0:00:01]} 72. g5 {[%emt 0:00:00]} Kg8 {[%emt 0:00:
00]} 73. Kf3 {[%emt 0:00:00]} Kh8 {[%emt 0:00:08]} 74. g6 {[%emt 0:00:00]} Kg8
{[%emt 0:00:03]} 75. h6 {[%emt 0:00:00]} Nd5 {[%emt 0:00:08]} 76. h7+ {[%emt 0:
00:00]} Kh8 {[%emt 0:00:03]} 77. Nd6 {[%emt 0:00:00]} 1-0